bitfinex/quotes_BTCUSD_20240712
["timestamp","ask_amount","ask_price","bid_price","bid_amount"]
[1720812545657,0.03090708,58030.0,58029.0,2.0280557]
[1720812546111,0.03090708,58030.0,58029.0,2.11547032]
[1720812546807,0.03090708,58030.0,58029.0,1.90747032]
[1720812546808,0.08082966,58030.0,58029.0,1.90747032]
[1720812547014,0.08082966,58030.0,58029.0,1.92147032]
[1720812547219,0.02990708,58030.0,58029.0,1.92147032]
[1720812547431,0.02990708,58030.0,58029.0,1.90747032]
[1720812547800,0.02990708,58030.0,58029.0,1.92147032]
[1720812548221,0.444496,58056.0,58038.0,0.1723]
[1720812548383,0.09757131,58039.0,58038.0,1.007602]
[1720812548582,0.09757131,58039.0,58038.0,1.352603]
[1720812549010,0.09757131,58039.0,58038.0,1.4878633]
[1720812549473,0.09757131,58039.0,58038.0,1.352203]
[1720812551256,0.09757131,58039.0,58038.0,1.362203]
[1720812551902,0.00083,58039.0,58038.0,1.362203]
[1720812552114,0.06818962,58039.0,58038.0,1.362203]
[1720812552345,0.00083,58039.0,58038.0,1.362203]
[1720812552552,0.09659973,58039.0,58038.0,1.362203]
[1720812553830,0.09659973,58039.0,58038.0,1.4984633]
[1720812554246,0.09652335,58039.0,58038.0,1.4984633]
[1720812554664,0.00083,58039.0,58038.0,1.4984633]
[1720812555104,0.09652147,58039.0,58038.0,1.4984633]
[1720812555311,0.02920694,58039.0,58038.0,1.4984633]
[1720812556406,0.02920694,58039.0,58038.0,1.362203]
[1720812557712,0.02920694,58039.0,58038.0,1.385203]
[1720812558339,0.02929134,58039.0,58038.0,1.385203]
[1720812560685,0.06821512,58039.0,58038.0,1.385203]
[1720812560884,0.09667646,58039.0,58038.0,1.385203]
[1720812561038,0.09667554,58039.0,58038.0,1.385203]
[1720812561238,0.09667554,58039.0,58038.0,1.40869272]
[1720812561682,0.09666224,58039.0,58038.0,1.40869272]
[1720812562149,0.09666328,58039.0,58038.0,1.40869272]
[1720812564486,0.06816646,58039.0,58038.0,1.40869272]
[1720812564630,0.00083,58039.0,58038.0,1.40869272]
[1720812565048,0.09656295,58039.0,58038.0,1.40909272]
[1720812565268,0.09656295,58039.0,58038.0,1.40869272]
[1720812565894,0.09656295,58039.0,58038.0,1.40909272]
[1720812568210,0.13096815,58039.0,58038.0,2.04219372]
[1720812568434,0.07974079,58039.0,58038.0,2.04219372]
[1720812568662,0.02887288,58039.0,58038.0,2.04219372]
[1720812569360,0.02887288,58039.0,58038.0,2.12960834]
[1720812569569,0.02887288,58039.0,58038.0,2.11960834]
[1720812570020,0.02887288,58039.0,58038.0,2.13360834]
[1720812570242,0.02887288,58039.0,58038.0,2.14760834]
[1720812570243,0.02987288,58039.0,58038.0,2.14760834]
[1720812571144,0.02987288,58039.0,58038.0,2.32930834]
[1720812571584,0.03008883,58039.0,58038.0,2.32930834]
[1720812572055,0.00183,58039.0,58038.0,2.42930834]
[1720812572266,0.03009121,58039.0,58038.0,2.42930834]
[1720812574484,0.02998884,58039.0,58038.0,2.42930834]
[1720812574947,0.02997103,58039.0,58038.0,2.77390934]
[1720812577179,0.00183,58039.0,58038.0,2.77390934]
[1720812577389,0.00183,58039.0,58038.0,2.94413804]
[1720812577600,0.00183,58039.0,58038.0,3.04413804]
[1720812578427,0.00083,58039.0,58038.0,3.37473904]
[1720812578646,0.00083,58053.0,58052.0,1.890931]
[1720812578869,0.02887911,58053.0,58052.0,2.34565323]
[1720812579296,0.00083,58053.0,58052.0,2.34565323]
[1720812579499,0.00083,58053.0,58052.0,2.43306785]
[1720812579712,0.00083,58053.0,58052.0,2.60330525]
[1720812579935,0.02781063,58053.0,58052.0,2.60330525]
[1720812580591,0.00083,58053.0,58052.0,2.60330525]
[1720812581261,0.00083,58053.0,58052.0,2.61730525]
[1720812581478,0.00083,58053.0,58052.0,3.51375195]
[1720812581689,0.00083,58053.0,58052.0,3.53429195]
[1720812582145,0.00083,58053.0,58052.0,3.89280995]
[1720812582416,0.00306353,58070.0,58069.0,1.894293]
[1720812582619,0.07605937,58082.0,58070.0,0.08741462]
[1720812582827,0.0778671,58081.0,58080.0,0.344352]
[1720812583085,0.02718021,58081.0,58080.0,0.86088]
[1720812583309,0.05128689,58083.0,58073.0,0.0885]
[1720812583310,0.18861435,58082.0,58073.0,0.0885]
[1720812583532,0.18861435,58082.0,58052.0,0.014]
[1720812583533,0.69193272,58053.0,58052.0,0.014]
[1720812583887,1.46276709,58053.0,58052.0,0.014]
[1720812584114,0.07436472,58045.0,58044.0,0.51068611]
[1720812584343,0.07436472,58045.0,58032.0,0.000913]
[1720812584344,0.01258538,58036.0,58032.0,0.000913]
[1720812584583,0.01258538,58036.0,58032.0,0.0962782]
[1720812584793,0.02855962,58035.0,58032.0,0.0962782]
[1720812585010,0.02855962,58035.0,58032.0,0.000913]
[1720812585644,0.06320032,58036.0,58032.0,0.013913]
[1720812585645,0.01258538,58036.0,58032.0,0.013913]
[1720812585855,0.03061563,58035.0,58033.0,0.0187248]
[1720812586550,0.03061563,58035.0,58032.0,0.014913]
[1720812587061,0.08123473,58035.0,58032.0,0.014913]
[1720812587302,0.03061563,58034.0,58032.0,0.014913]
[1720812587527,0.06320448,58036.0,58032.0,0.014913]
[1720812587528,0.03061563,58035.0,58033.0,0.0532897]
[1720812587759,0.06320448,58036.0,58033.0,0.0532897]
[1720812587760,0.03081375,58034.0,58033.0,0.0532897]
[1720812588011,0.08145047,58035.0,58033.0,0.0532897]
[1720812588241,0.08145047,58034.0,58033.0,0.0672897]
[1720812588741,0.01258538,58036.0,58033.0,0.0532897]
[1720812588948,0.05063896,58034.0,58033.0,0.0532897]
[1720812589188,0.03181552,58034.0,58033.0,0.0692897]
[1720812589895,0.03181552,58034.0,58033.0,0.0602897]
[1720812589896,0.03081552,58034.0,58033.0,0.0602897]
[1720812590378,0.06322774,58036.0,58033.0,0.0602897]
[1720812590379,0.03081552,58035.0,58033.0,0.0602897]
[1720812590514,0.03081552,58034.0,58033.0,0.0532897]
[1720812590748,0.03081552,58034.0,58033.0,0.2336047]
[1720812591171,0.06422774,58036.0,58033.0,0.2406047]
[1720812591396,0.03095499,58035.0,58034.0,0.05791577]
[1720812591847,0.03090022,58035.0,58034.0,0.05691577]
[1720812592073,0.08155192,58035.0,58034.0,0.05691577]
[1720812592271,0.03090022,58035.0,58034.0,0.05691577]
[1720812592497,0.03090022,58035.0,58033.0,0.0592897]
[1720812592709,0.00099999,58034.0,58033.0,0.006]
[1720812592916,0.03190021,58034.0,58033.0,0.178315]
[1720812593115,0.03090022,58034.0,58033.0,0.2652681]
[1720812593361,0.03090022,58034.0,58033.0,0.6098991]
[1720812593733,0.03090022,58034.0,58033.0,0.2652681]
[1720812593944,0.03090022,58034.0,58033.0,0.2592681]
[1720812594532,0.03090022,58034.0,58033.0,0.2672681]
[1720812594696,0.03094377,58034.0,58033.0,0.2672681]
[1720812595891,0.03194377,58034.0,58033.0,0.2762681]
[1720812596929,0.03194377,58034.0,58033.0,0.6208991]
[1720812598045,0.03201379,58034.0,58033.0,0.6208991]
[1720812598247,0.03201379,58034.0,58033.0,0.6218121]
[1720812599493,0.03198261,58034.0,58033.0,0.6218121]
[1720812600557,0.03258261,58034.0,58033.0,0.6218121]
[1720812600821,0.03258261,58034.0,58033.0,0.017913]
[1720812600822,0.16954733,58034.0,58033.0,0.017913]
[1720812601027,0.65650171,58034.0,58033.0,0.017913]
[1720812601238,1.0328045,58034.0,58033.0,0.017913]
[1720812601439,1.10317919,58034.0,58033.0,0.017913]
[1720812601605,1.27341659,58034.0,58033.0,0.009913]
[1720812601866,1.27241659,58034.0,58033.0,0.000913]
[1720812602070,1.27241659,58034.0,58033.0,0.007913]
[1720812602306,1.27241659,58034.0,58033.0,0.004913]
[1720812602524,1.2020419,58034.0,58033.0,0.004913]
[1720812602793,1.0918045,58034.0,58033.0,0.004913]
[1720812602967,1.49009208,58034.0,58033.0,0.004913]
[1720812603176,1.70027384,58034.0,58033.0,0.004913]
[1720812603396,1.70023749,58034.0,58033.0,0.000913]
[1720812603640,1.54858725,58034.0,58033.0,0.000913]
[1720812603851,1.55393406,58034.0,58033.0,0.000913]
[1720812604082,1.55693406,58034.0,58033.0,0.000913]
[1720812604312,1.44645172,58034.0,58033.0,0.000913]
[1720812604519,1.55775642,58034.0,58033.0,0.002913]
[1720812604725,1.56175642,58034.0,58033.0,0.002913]
[1720812604931,1.71339706,58034.0,58033.0,0.001913]
[1720812605139,1.71339706,58034.0,58033.0,0.000913]
[1720812605140,1.55275642,58034.0,58033.0,0.000913]
[1720812605363,1.55675642,58034.0,58033.0,0.000913]
[1720812605574,1.15313142,58034.0,58033.0,0.000913]
[1720812605784,1.15313142,58034.0,58033.0,0.001913]
[1720812605990,0.81250642,58034.0,58033.0,0.001913]
[1720812606419,0.74201917,58034.0,58033.0,0.001913]
[1720812606648,0.73701917,58034.0,58033.0,0.001913]
[1720812606865,0.74501917,58034.0,58033.0,0.002913]
[1720812607089,0.74521105,58034.0,58033.0,0.002913]
[1720812607347,1.23609677,58034.0,58033.0,0.001913]
[1720812607564,1.26310455,58034.0,58033.0,0.000913]
[1720812607767,1.26810455,58034.0,58033.0,0.000913]
[1720812608343,1.26810194,58034.0,58033.0,0.000913]
[1720812608594,1.1418345,58034.0,58033.0,0.000913]
[1720812609700,1.0818345,58034.0,58033.0,0.000913]
[1720812610318,1.18206949,58034.0,58033.0,0.000913]
[1720812611367,1.25211184,58034.0,58033.0,0.000913]
[1720812613300,1.15103604,58034.0,58033.0,0.000913]
[1720812613511,1.04982672,58034.0,58033.0,0.000913]
[1720812613736,1.15746521,58034.0,58033.0,0.000913]
[1720812614450,2.12801521,58034.0,58033.0,0.000913]
[1720812614658,2.42953349,58034.0,58033.0,0.000913]
[1720812614875,2.59977089,58034.0,58033.0,0.000913]
[1720812615125,2.39977089,58034.0,58033.0,0.000913]
[1720812615333,2.59977089,58034.0,58033.0,0.000913]
[1720812615704,2.39977089,58034.0,58033.0,0.000913]
[1720812616842,2.2990414,58034.0,58033.0,0.000913]
[1720812617095,2.55019485,58034.0,58033.0,0.000913]
[1720812617331,2.45050503,58034.0,58033.0,0.000913]
[1720812617579,2.39851493,58034.0,58033.0,0.000913]
[1720812617831,2.59851493,58034.0,58033.0,0.000913]
[1720812618071,3.04313993,58034.0,58033.0,0.000913]
[1720812618308,3.24930956,58034.0,58033.0,0.000913]
[1720812618561,3.09785907,58034.0,58033.0,0.000913]
[1720812619302,2.99338554,58034.0,58033.0,0.000913]
[1720812619523,3.04565412,58034.0,58033.0,0.101913]
[1720812620024,1.84189814,58034.0,58033.0,0.101913]
[1720812620279,0.12,58033.0,58029.0,0.001013]
[1720812620594,0.12,58033.0,58007.0,0.004108]
[1720812620595,1.96837472,58008.0,58007.0,0.004108]
[1720812620809,1.96837472,58008.0,58001.0,0.052]
[1720812620810,1.92291672,58002.0,58001.0,0.052]
[1720812621071,2.79743828,58002.0,58001.0,0.02805317]
[1720812621313,3.2881923,58002.0,58001.0,0.03951687]
[1720812621559,3.2881923,58002.0,58001.0,0.02805317]
[1720812621560,3.2340234,58002.0,58001.0,0.02805317]
[1720812621801,3.07844037,58002.0,58001.0,0.02805317]
[1720812622045,3.2340234,58002.0,58001.0,0.02805317]
[1720812622289,0.53436472,58001.0,58000.0,0.09560232]
[1720812622512,2.89800996,58001.0,58000.0,0.00428317]
[1720812622999,1.87251643,58001.0,58000.0,0.00428317]
[1720812623255,1.52889442,58001.0,58000.0,0.00428317]
[1720812623489,2.1151142,58001.0,58000.0,0.00428317]
[1720812623969,2.4937068,58001.0,58000.0,0.00428317]
[1720812624206,2.44620524,58001.0,58000.0,0.00428317]
[1720812624644,2.38499845,58001.0,58000.0,0.00428317]
[1720812624904,2.39899845,58001.0,58000.0,0.00428317]
[1720812625161,2.38806198,58001.0,58000.0,0.00428317]
[1720812625417,2.38806198,58001.0,57991.0,0.036108]
[1720812625418,1.78630172,57992.0,57991.0,0.036108]
[1720812625647,2.03989651,57992.0,57991.0,0.036108]
[1720812625904,2.13989651,57992.0,57991.0,0.036108]
[1720812626401,2.14054725,57992.0,57991.0,0.036108]
[1720812626897,2.31078465,57992.0,57991.0,0.036108]
[1720812627133,2.32478499,57992.0,57991.0,0.036108]
[1720812627830,2.37441043,57992.0,57991.0,0.036108]
[1720812628081,2.38841043,57992.0,57991.0,0.036108]
[1720812628337,2.57091043,57992.0,57991.0,0.036108]
[1720812628596,2.57091043,57992.0,57976.0,0.0058428]
[1720812628597,1.96807872,57989.0,57976.0,0.0058428]
[1720812628830,2.00102459,57989.0,57976.0,0.0058428]
[1720812629070,2.10102459,57989.0,57976.0,0.0058428]
[1720812629310,2.40334935,57989.0,57976.0,0.0058428]
[1720812629564,1.96821372,57984.0,57976.0,0.0058428]
[1720812629807,2.04003815,57984.0,57976.0,0.0058428]
[1720812630055,2.04156291,57984.0,57976.0,0.0058428]
[1720812630309,1.69664091,57984.0,57976.0,0.0058428]
[1720812630562,1.63664091,57984.0,57976.0,0.0058428]
[1720812630806,0.59174772,57984.0,57976.0,0.1783278]
[1720812631055,0.59174772,57984.0,57976.0,0.0058428]
[1720812631288,0.60574772,57984.0,57976.0,0.0058428]
[1720812631759,1.96765719,57984.0,57976.0,0.0058428]
[1720812632007,2.39857919,57984.0,57976.0,0.0058428]
[1720812632272,2.39937919,57984.0,57976.0,0.0058428]
[1720812632507,1.97800171,57984.0,57976.0,0.0058428]
[1720812632752,1.35058175,57984.0,57976.0,0.0058428]
[1720812632987,1.31796972,57984.0,57976.0,0.0058428]
[1720812633227,1.77589172,57984.0,57976.0,0.0058428]
[1720812633458,1.94612912,57984.0,57976.0,0.0058428]
[1720812633700,1.63102959,57984.0,57976.0,0.0058428]
[1720812633962,1.25878434,57984.0,57976.0,0.0058428]
[1720812634494,1.71770634,57984.0,57976.0,0.0058428]
[1720812634738,1.93100358,57984.0,57976.0,0.0058428]
[1720812634980,2.27592558,57984.0,57976.0,0.0058428]
[1720812635217,2.05564374,57984.0,57976.0,0.0058428]
[1720812635476,2.06964374,57984.0,57976.0,0.0058428]
[1720812635728,1.60370634,57984.0,57976.0,0.0058428]
[1720812635988,1.27178434,57984.0,57976.0,0.0058428]
[1720812636450,1.25878434,57984.0,57976.0,0.0058428]
[1720812636700,1.27278434,57984.0,57976.0,0.0058428]
[1720812637170,1.25878434,57984.0,57976.0,0.0058428]
[1720812637407,1.24478434,57984.0,57976.0,0.0058428]
[1720812637639,1.42802174,57984.0,57976.0,0.0058428]
[1720812637919,1.30521434,57982.0,57976.0,0.0058428]
[1720812638179,1.52658934,57977.0,57976.0,0.00041371]
[1720812638455,2.31651734,57977.0,57976.0,0.00041371]
[1720812638652,2.34985003,57977.0,57976.0,0.00041371]
[1720812638884,2.54985003,57977.0,57976.0,0.00041371]
[1720812639117,2.54985032,57977.0,57976.0,0.00041371]
[1720812639361,3.10810587,57977.0,57976.0,0.00041371]
[1720812639599,2.83324423,57977.0,57976.0,0.00041371]
[1720812639909,2.3933274,57977.0,57976.0,0.00041371]
[1720812640443,2.36427464,57977.0,57976.0,0.00041371]
[1720812640653,2.37827464,57977.0,57976.0,0.00041371]
[1720812640879,2.57827464,57977.0,57976.0,0.00041371]
[1720812641351,2.62471644,57977.0,57976.0,0.00041371]
[1720812641840,2.79495384,57977.0,57976.0,0.00041371]
[1720812642631,2.79488982,57977.0,57976.0,0.00041371]
[1720812643120,2.31318982,57977.0,57976.0,0.00041371]
[1720812643356,2.46522253,57977.0,57976.0,0.00041371]
[1720812644077,2.74692253,57977.0,57976.0,0.00041371]
[1720812644532,2.73292253,57977.0,57976.0,0.00041371]
[1720812644825,2.79336433,57977.0,57976.0,0.00041371]
[1720812645066,2.76536433,57977.0,57976.0,0.00041371]
[1720812645318,2.74692253,57977.0,57976.0,0.00041371]
[1720812645573,2.75522355,57977.0,57976.0,0.00041371]
[1720812645805,2.78766535,57977.0,57976.0,0.00041371]
[1720812646054,3.13262935,57977.0,57976.0,0.00041371]
[1720812646298,3.14662935,57977.0,57976.0,0.00041371]
[1720812647024,3.14815504,57977.0,57976.0,0.00041371]
[1720812648666,3.15726304,57977.0,57976.0,0.00041371]
[1720812648932,0.71537634,57972.0,57971.0,0.002]
[1720812649187,1.53808962,57972.0,57971.0,0.002]
[1720812649439,2.34752976,57972.0,57971.0,0.002]
[1720812649697,2.69253615,57972.0,57971.0,0.002]
[1720812649959,2.62183921,57972.0,57971.0,0.002]
[1720812650190,2.80507661,57972.0,57971.0,0.002]
[1720812650430,2.80507661,57972.0,57947.0,0.0645]
[1720812650431,1.50551134,57962.0,57947.0,0.0645]
[1720812650668,0.57884834,57952.0,57947.0,0.0645]
[1720812650908,1.52309962,57952.0,57947.0,0.0645]
[1720812651155,2.01465442,57952.0,57946.0,0.0818]
[1720812651408,2.01465442,57952.0,57937.0,0.04376114]
[1720812651409,0.57897334,57938.0,57937.0,0.04376114]
[1720812651706,1.64518395,57938.0,57937.0,0.04376114]
[1720812651984,0.03272528,57938.0,57937.0,0.10606114]
[1720812652228,0.345172,57943.0,57937.0,0.10606114]
[1720812652229,0.00152579,57946.0,57939.0,0.172594]
[1720812652497,0.00152579,57946.0,57937.0,0.10606114]
[1720812652498,0.00306353,57945.0,57944.0,0.31999435]
[1720812652730,0.1,57958.0,57944.0,0.31999435]
[1720812652731,0.00306353,57951.0,57950.0,0.232562]
[1720812652966,0.00306353,57951.0,57950.0,0.234862]
[1720812653196,0.014,57952.0,57951.0,0.232559]
[1720812653456,0.014,57952.0,57951.0,0.577778]
[1720812653734,0.014,57952.0,57951.0,1.07510261]
[1720812653994,0.345015,57969.0,57959.0,0.232635]
[1720812653995,0.00117934,57963.0,57959.0,0.232635]
[1720812654482,0.00306353,57962.0,57960.0,0.26172532]
[1720812654729,0.00306353,57962.0,57961.0,0.172529]
[1720812654965,0.00117934,57962.0,57961.0,0.01198244]
[1720812655501,0.00855632,57962.0,57961.0,0.01098244]
[1720812655745,0.18608232,57962.0,57961.0,0.01098244]
[1720812655986,0.9054134,57962.0,57961.0,0.01098244]
[1720812656490,0.9054134,57962.0,57960.0,0.0762]
[1720812656491,0.51876734,57961.0,57960.0,0.0762]
[1720812656746,0.89917848,57961.0,57960.0,0.0762]
[1720812656980,0.89917848,57961.0,57960.0,0.952492]
[1720812656981,0.03228861,57961.0,57960.0,0.952492]
[1720812657225,0.00117934,57970.0,57964.0,0.172519]
[1720812657482,0.00117934,57966.0,57964.0,0.172519]
[1720812657705,0.00117934,57966.0,57965.0,0.00868892]
[1720812657939,0.172523,57964.0,57960.0,0.1401]
[1720812658196,0.172527,57962.0,57960.0,0.1401]
[1720812658422,0.35054558,57963.0,57960.0,0.1401]
[1720812658423,0.00117934,57963.0,57960.0,0.1401]
[1720812658909,0.00737677,57965.0,57962.0,0.345053]
[1720812658910,0.00549258,57965.0,57962.0,0.345053]
[1720812659146,0.00549258,57965.0,57964.0,0.17252]
[1720812659147,0.00431324,57965.0,57964.0,0.17252]
[1720812659391,0.00117934,57965.0,57964.0,0.001]
[1720812659623,0.00431313,57968.0,57964.0,0.001]
[1720812659624,0.00117934,57966.0,57964.0,0.001]
[1720812660108,0.00117934,57965.0,57964.0,0.001]
[1720812660371,0.00924287,57970.0,57966.0,0.0821]
[1720812660619,0.00924287,57970.0,57968.0,0.172508]
[1720812660620,0.034039,57969.0,57968.0,0.172508]
[1720812660885,0.034039,57969.0,57967.0,0.41012]
[1720812660886,0.00117934,57968.0,57967.0,0.237609]
[1720812661117,0.00117934,57968.0,57967.0,0.582632]
[1720812661868,0.00117934,57968.0,57967.0,0.0651]
[1720812662106,0.51870434,57968.0,57967.0,0.0651]
[1720812662350,0.54799371,57968.0,57967.0,0.0651]
[1720812663629,0.54799371,57968.0,57966.0,0.0761]
[1720812663630,0.57874034,57964.0,57963.0,0.0666]
[1720812663864,0.57874034,57964.0,57950.0,0.345123]
[1720812663865,0.34627434,57955.0,57950.0,0.0805]
[1720812664103,0.51885734,57951.0,57950.0,0.1455]
[1720812664352,0.5472416,57951.0,57950.0,0.1455]
[1720812664596,0.17375934,57944.0,57943.0,0.077]
[1720812664830,0.20319952,57944.0,57943.0,0.077]
[1720812665071,0.54835952,57944.0,57943.0,0.077]
[1720812665294,0.95351952,57944.0,57943.0,0.077]
[1720812665520,0.00117934,57939.0,57938.0,0.0617]
[1720812665751,0.20321452,57939.0,57938.0,0.0617]
[1720812666656,0.03061952,57939.0,57938.0,0.0617]
[1720812666884,0.00117934,57939.0,57938.0,0.0617]
[1720812667121,0.00431498,57944.0,57942.0,0.172586]
[1720812667361,0.00549412,57948.0,57944.0,0.0605]
[1720812667634,0.02908909,57947.0,57946.0,0.172574]
[1720812667866,0.02908909,57947.0,57945.0,0.0762]
[1720812668089,0.00117934,57949.0,57946.0,0.172572]
[1720812668345,0.00117934,57946.0,57945.0,0.0762]
[1720812668786,0.03026982,57946.0,57945.0,0.248777]
[1720812669024,0.03026982,57946.0,57945.0,0.0762]
[1720812669480,0.0544906,57946.0,57945.0,0.0762]
[1720812669700,0.54799182,57946.0,57945.0,0.0762]
[1720812669948,0.03026982,57946.0,57945.0,0.0762]
[1720812670172,0.51895534,57940.0,57939.0,0.0817]
[1720812670500,0.8928516,57940.0,57939.0,0.0817]
[1720812670958,0.51897334,57938.0,57937.0,0.10496114]
[1720812671179,0.8928816,57938.0,57937.0,0.10496114]
[1720812672047,0.2024896,57938.0,57937.0,0.10496114]
[1720812672263,0.2024896,57938.0,57937.0,0.10696114]
[1720812672661,0.2068049,57938.0,57937.0,0.10696114]
[1720812672914,0.2068049,57938.0,57937.0,0.10496114]
[1720812673134,0.64181879,57938.0,57937.0,0.10496114]
[1720812673352,1.39221079,57938.0,57937.0,0.04376114]
[1720812673584,1.33056181,57938.0,57937.0,0.04376114]
[1720812673803,1.24074392,57938.0,57937.0,0.04368296]
[1720812674024,0.89554792,57938.0,57937.0,0.04368296]
[1720812674469,1.24174392,57938.0,57937.0,0.05768296]
[1720812674695,1.24174392,57938.0,57937.0,0.04568296]
[1720812674928,1.30074392,57938.0,57937.0,0.04368296]
[1720812675165,1.59751533,57938.0,57937.0,0.04468296]
[1720812675397,1.59751533,57938.0,57937.0,0.04668296]
[1720812675398,1.52204392,57938.0,57937.0,0.04668296]
[1720812675619,2.1947531,57938.0,57937.0,0.04668296]
[1720812675845,3.02102055,57938.0,57937.0,0.04668296]
[1720812676073,2.67582455,57938.0,57937.0,0.04468296]
[1720812676335,3.02102055,57938.0,57937.0,0.04468296]
[1720812676564,1.93586134,57938.0,57937.0,0.04468296]
[1720812676819,2.15401902,57938.0,57937.0,0.04468296]
[1720812677041,0.02808688,57938.0,57937.0,0.10828296]
[1720812677282,0.03240218,57938.0,57937.0,0.10728296]
[1720812677499,0.55219618,57938.0,57937.0,0.10728296]
[1720812677725,0.03640218,57938.0,57937.0,0.10728296]
[1720812677947,0.02890754,57938.0,57937.0,0.10728296]
[1720812678149,0.004,57938.0,57937.0,0.62608596]
[1720812678402,0.00117934,57942.0,57938.0,0.171597]
[1720812678403,0.00549428,57942.0,57938.0,0.171597]
[1720812678627,0.03018001,57941.0,57939.0,0.345187]
[1720812678848,0.00306353,57941.0,57939.0,0.237693]
[1720812679091,0.00549411,57949.0,57943.0,0.172582]
[1720812679322,0.00549411,57949.0,57944.0,0.0651]
[1720812679323,0.00117934,57946.0,57944.0,0.0651]
[1720812679555,0.03142452,57948.0,57944.0,0.0651]
[1720812679556,0.0313529,57945.0,57944.0,0.0651]
[1720812679792,0.03127562,57945.0,57944.0,0.0651]
[1720812680023,0.60594309,57945.0,57944.0,0.0651]
[1720812680261,0.89109709,57945.0,57944.0,0.0651]
[1720812680488,0.89109709,57945.0,57937.0,0.04368296]
[1720812680489,0.57894634,57941.0,57940.0,0.0646]
[1720812680715,0.57894634,57941.0,57937.0,0.04368296]
[1720812680716,0.57897334,57938.0,57937.0,0.04368296]
[1720812680939,1.02662069,57938.0,57937.0,0.04368296]
[1720812681201,1.02662069,57938.0,57937.0,0.05568296]
[1720812681202,1.02762069,57938.0,57937.0,0.05568296]
[1720812681428,1.02662069,57938.0,57937.0,0.04368296]
[1720812681656,1.11100968,57938.0,57937.0,0.04368296]
[1720812681893,0.95120209,57938.0,57937.0,0.04368296]
[1720812682133,1.01612712,57938.0,57937.0,0.04368296]
[1720812682363,1.01612712,57938.0,57937.0,0.04868296]
[1720812682364,1.48702522,57938.0,57937.0,0.04868296]
[1720812682599,1.14282922,57938.0,57937.0,0.05268296]
[1720812682858,1.38495462,57938.0,57937.0,0.05268296]
[1720812683073,1.6019957,57938.0,57937.0,0.05268296]
[1720812683513,1.67630908,57938.0,57937.0,0.05268296]
[1720812683750,1.47630908,57938.0,57937.0,0.05268296]
[1720812683979,1.47530908,57938.0,57937.0,0.04868296]
[1720812684254,1.47630908,57938.0,57937.0,0.04668296]
[1720812684500,2.84920108,57938.0,57937.0,0.04668296]
[1720812684779,0.64287934,57927.0,57926.0,0.04365425]
[1720812685019,1.3609508,57927.0,57926.0,0.04365425]
[1720812685260,1.39590416,57927.0,57926.0,0.04365425]
[1720812685509,0.02748716,57927.0,57926.0,0.12485425]
[1720812685805,0.02630782,57927.0,57926.0,0.2712686]
[1720812686038,0.10052186,57934.0,57926.0,0.18615425]
[1720812686039,0.02828769,57929.0,57926.0,0.18615425]
[1720812686267,0.00549502,57931.0,57926.0,0.18615425]
[1720812686268,0.03135122,57928.0,57926.0,0.18115425]
[1720812686545,0.00306353,57928.0,57927.0,0.517893]
[1720812686783,0.00306353,57937.0,57932.0,0.1445]
[1720812687040,0.05331482,57945.0,57938.0,0.345194]
[1720812687272,0.6111887,57948.0,57939.0,0.1305]
[1720812687273,0.03194747,57944.0,57939.0,0.1305]
[1720812687510,0.00117934,57946.0,57939.0,0.1305]
[1720812687511,0.00117934,57940.0,57939.0,0.1305]
[1720812687767,0.00117934,57942.0,57939.0,0.1225]
[1720812688016,0.00117934,57943.0,57939.0,0.1225]
[1720812688247,0.02780213,57942.0,57939.0,0.295094]
[1720812688475,0.17688866,57946.0,57939.0,0.295094]
[1720812688476,0.00117934,57940.0,57939.0,0.295094]
[1720812688733,0.00117934,57943.0,57939.0,0.295094]
[1720812688975,0.00217934,57940.0,57939.0,0.295095]
[1720812689462,0.02769111,57940.0,57939.0,0.1225]
[1720812689727,0.001,57940.0,57939.0,1.054475]
[1720812690169,0.001,57942.0,57941.0,0.922945]
[1720812690393,0.001,57942.0,57941.0,1.348823]
[1720812690611,0.001,57942.0,57941.0,1.351323]
[1720812690833,0.00117934,57946.0,57945.0,0.517731]
[1720812691058,0.00117934,57946.0,57941.0,0.489374]
[1720812691059,0.00117934,57943.0,57941.0,0.489374]
[1720812691330,0.02846816,57942.0,57941.0,0.1442]
[1720812691544,0.02946816,57942.0,57941.0,0.1582]
[1720812691783,0.02946816,57942.0,57941.0,0.0915]
[1720812691784,0.95239816,57942.0,57941.0,0.0915]
[1720812692017,1.47134823,57942.0,57941.0,0.014]
[1720812692251,1.47134823,57942.0,57918.0,0.0846668]
[1720812692252,0.51903634,57931.0,57930.0,0.137]
[1720812692468,1.00785209,57931.0,57930.0,0.137]
[1720812692685,0.89157429,57931.0,57930.0,0.137]
[1720812692900,0.60633629,57931.0,57930.0,0.137]
[1720812693122,0.66294927,57931.0,57930.0,0.137]
[1720812693600,0.54633629,57931.0,57930.0,0.137]
[1720812694048,0.54633629,57931.0,57925.0,0.0777328]
[1720812694049,0.517893,57927.0,57925.0,0.0777328]
[1720812694262,0.02847929,57927.0,57925.0,0.0777328]
[1720812694479,0.02729995,57927.0,57925.0,0.0777328]
[1720812695182,0.05027558,57936.0,57933.0,0.345225]
[1720812695413,0.05027558,57936.0,57934.0,0.172609]
[1720812695414,0.00117934,57936.0,57934.0,0.172609]
[1720812695630,0.02741037,57935.0,57933.0,0.172612]
[1720812695891,0.02741037,57935.0,57932.0,0.1434]
[1720812695892,0.02741037,57935.0,57934.0,0.51783]
[1720812696103,0.02741037,57935.0,57934.0,0.17261]
[1720812696315,0.00107932,57939.0,57935.0,0.172607]
[1720812696534,0.02714792,57938.0,57935.0,0.172607]
[1720812697023,0.00107932,57936.0,57933.0,0.172612]
[1720812697246,0.00107932,57934.0,57932.0,0.1434]
[1720812697491,0.05027558,57939.0,57935.0,0.0766]
[1720812697717,0.02721251,57938.0,57936.0,0.172603]
[1720812697933,0.02721251,57937.0,57936.0,0.0488326]
[1720812698160,0.02721251,57941.0,57936.0,0.3940406]
[1720812698348,0.05027558,57945.0,57942.0,0.172586]
[1720812698614,0.00306353,57944.0,57940.0,0.0665]
[1720812698840,0.00107932,57941.0,57940.0,0.0665]
[1720812699068,0.09286073,57943.0,57940.0,0.0665]
[1720812699069,0.02815197,57942.0,57940.0,0.0665]
[1720812699293,0.00107932,57941.0,57940.0,0.0665]
[1720812699507,0.09658739,57941.0,57940.0,0.0665]
[1720812699915,0.09352199,57941.0,57940.0,0.0735]
[1720812700341,0.09157711,57941.0,57940.0,0.0735]
[1720812700556,0.26416611,57941.0,57940.0,0.0735]
[1720812700860,0.68477633,57941.0,57940.0,0.007]
[1720812701041,1.05816194,57941.0,57940.0,0.007]